bitfinex/quotes_BTCUSD_20240823
["timestamp","ask_amount","ask_price","bid_price","bid_amount"]
[1724454088605,1.009141,64279.0,64278.0,3.15721507]
[1724454089106,1.009141,64279.0,64278.0,2.84606707]
[1724454089281,1.009141,64279.0,64278.0,2.66416707]
[1724454089625,1.009141,64279.0,64278.0,2.33001907]
[1724454089820,1.009141,64279.0,64278.0,2.32392021]
[1724454090872,1.009141,64279.0,64278.0,1.2432]
[1724454091084,1.009141,64279.0,64259.0,0.7836]
[1724454091085,1.009141,64279.0,64265.0,1.2432]
[1724454091356,1.009141,64279.0,64267.0,0.15617801]
[1724454091592,0.22906709,64278.0,64256.0,1.2432]
[1724454091848,0.155596,64269.0,64257.0,0.15613168]
[1724454092073,0.155614,64262.0,64241.0,0.155663]
[1724454092320,0.155608,64265.0,64243.0,0.155656]
[1724454092547,0.311218,64264.0,64238.0,0.31134]
[1724454092748,0.15617801,64265.0,64236.0,0.3809]
[1724454092749,0.15617801,64265.0,64242.0,0.311321]
[1724454092945,0.155609,64264.0,64243.0,0.20301051]
[1724454093191,0.0929,64270.0,64243.0,0.20301051]
[1724454093192,0.0929,64270.0,64245.0,0.311307]
[1724454093326,0.0929,64270.0,64255.0,0.311257]
[1724454093532,0.0929,64270.0,64246.0,0.15617801]
[1724454093533,0.0929,64270.0,64251.0,0.155638]
[1724454093783,0.0929,64270.0,64248.0,0.311293]
[1724454093784,0.0929,64270.0,64252.0,0.15617801]
[1724454094015,0.0929,64270.0,64253.0,0.2023811]
[1724454094260,0.0929,64270.0,64256.0,0.155627]
[1724454094462,0.0929,64270.0,64256.0,0.46743101]
[1724454094747,0.0929,64270.0,64257.0,0.15617801]
[1724454094880,1.078141,64279.0,64263.0,0.311217]
[1724454095080,1.078141,64279.0,64264.0,0.0311217]
[1724454095280,1.078141,64279.0,64266.0,0.155602]
[1724454095802,1.078141,64279.0,64271.0,0.15559]
[1724454095964,1.078141,64279.0,64267.0,0.15617801]
[1724454095965,1.078141,64279.0,64272.0,0.155587]
[1724454096163,1.078141,64279.0,64273.0,0.155585]
[1724454096390,1.009141,64279.0,64274.0,0.0155585]
[1724454096592,1.009141,64279.0,64275.0,0.15617801]
[1724454097016,1.009141,64279.0,64278.0,0.155574]
[1724454097392,1.009141,64279.0,64274.0,0.0155585]
[1724454097567,1.009141,64279.0,64274.0,0.17173651]
[1724454097775,1.009141,64279.0,64275.0,0.1419854]
[1724454099196,0.069,64278.0,64263.0,1.2432]
[1724454099402,0.069,64278.0,64254.0,1.2432]
[1724454099403,0.07288953,64278.0,64254.0,1.2432]
[1724454099615,0.069,64278.0,64259.0,0.155617]
[1724454100060,0.069,64278.0,64261.0,0.155615]
[1724454100413,0.069,64278.0,64254.0,1.2432]
[1724454100414,0.069,64278.0,64262.0,0.15617801]
[1724454100901,0.069,64278.0,64269.0,0.155594]
[1724454101136,0.069,64278.0,64268.0,0.311196]
[1724454101328,0.069,64278.0,64270.0,0.155591]
[1724454101625,0.10881572,64278.0,64270.0,0.155591]
[1724454101812,0.03981572,64278.0,64272.0,0.155588]
[1724454102013,0.03981572,64278.0,64273.0,0.15617801]
[1724454102319,0.03981572,64278.0,64274.0,0.311167]
[1724454102513,0.03981572,64278.0,64275.0,0.31230969]
[1724454102724,0.03981572,64278.0,64276.0,0.155578]
[1724454102853,0.03981572,64278.0,64277.0,0.155576]
[1724454103744,0.03981572,64278.0,64276.0,0.31175601]
[1724454103890,0.03981572,64278.0,64276.0,0.15617801]
[1724454104086,0.03981572,64278.0,64277.0,0.04816142]
[1724454105546,0.03981572,64278.0,64277.0,0.20373742]
[1724454105763,1.009141,64279.0,64277.0,0.20373742]
[1724454105764,1.009141,64279.0,64278.0,0.06018428]
[1724454105983,1.009141,64279.0,64278.0,0.52690628]
[1724454106231,1.009141,64279.0,64278.0,2.54858029]
[1724454106440,1.009141,64279.0,64278.0,2.57969989]
[1724454106875,1.009141,64279.0,64278.0,2.26855189]
[1724454108242,1.009141,64279.0,64278.0,1.64625589]
[1724454108776,1.009141,64279.0,64278.0,1.33450388]
[1724454111484,1.009141,64279.0,64278.0,1.80122588]
[1724454112052,1.009141,64279.0,64278.0,1.95740389]
[1724454112250,1.009141,64279.0,64278.0,2.26855189]
[1724454112452,1.009141,64279.0,64278.0,2.57969989]
[1724454113117,1.009141,64279.0,64278.0,2.96219989]
[1724454115764,1.009141,64279.0,64278.0,2.65105189]
[1724454116004,1.009141,64279.0,64278.0,2.64957699]
[1724454116188,1.009141,64279.0,64278.0,1.33302898]
[1724454116635,1.009141,64279.0,64278.0,1.48860298]
[1724454117075,1.009141,64279.0,64278.0,2.26707699]
[1724454117473,1.009141,64279.0,64278.0,2.57822499]
[1724454117648,1.009141,64279.0,64278.0,2.26707699]
[1724454117850,1.009141,64279.0,64278.0,1.95592899]
[1724454118401,1.009141,64279.0,64278.0,2.26707699]
[1724454118648,1.009141,64279.0,64278.0,0.05870938]
[1724454118847,1.48279001,64279.0,64278.0,0.05870938]
[1724454119131,2.10507601,64279.0,64278.0,0.05870938]
[1724454119465,2.10507601,64279.0,64256.0,1.2432]
[1724454119466,0.155596,64269.0,64256.0,1.2432]
[1724454119691,0.311178,64272.0,64253.0,0.062338]
[1724454119891,0.15617801,64271.0,64254.0,0.15613168]
[1724454120514,0.0342,64270.0,64254.0,0.15602841]
[1724454121292,0.04628464,64277.0,64260.0,0.311232]
[1724454121517,0.04628464,64277.0,64255.0,0.15617801]
[1724454121518,0.0342,64278.0,64256.0,0.311251]
[1724454121710,0.0342,64278.0,64266.0,0.155603]
[1724454121910,0.0342,64278.0,64267.0,0.0155603]
[1724454122116,1.078141,64279.0,64267.0,0.0155603]
[1724454122314,1.009141,64279.0,64268.0,0.15617801]
[1724454122740,1.009141,64279.0,64278.0,0.466722]
[1724454122937,1.009141,64279.0,64278.0,0.62290001]
[1724454123258,1.009141,64279.0,64278.0,0.68519001]
[1724454123461,1.009141,64279.0,64278.0,1.37883801]
[1724454123682,1.009141,64279.0,64278.0,1.50183801]
[1724454123989,1.009141,64279.0,64278.0,1.81298601]
[1724454124744,1.009141,64279.0,64278.0,3.56443401]
[1724454124972,0.809141,64279.0,64278.0,3.70246401]
[1724454125329,0.809141,64279.0,64278.0,3.56443401]
[1724454125535,0.809141,64279.0,64278.0,3.71093401]
[1724454126438,0.809141,64279.0,64278.0,3.59443401]
[1724454126832,0.809141,64279.0,64278.0,3.56443401]
[1724454127174,0.809141,64279.0,64278.0,2.91913801]
[1724454127364,0.809141,64279.0,64278.0,1.06769001]
[1724454127553,0.809141,64279.0,64278.0,1.37883801]
[1724454128702,0.809141,64279.0,64278.0,1.68998601]
[1724454128919,0.809141,64279.0,64278.0,1.37883801]
[1724454129658,0.809141,64279.0,64278.0,1.68998601]
[1724454130495,0.809141,64279.0,64278.0,1.37883801]
[1724454130869,0.809141,64279.0,64278.0,2.95618601]
[1724454131030,0.809141,64279.0,64278.0,3.05618601]
[1724454131900,0.81004851,64279.0,64278.0,3.05618601]
[1724454134623,0.81004851,64279.0,64278.0,3.63168201]
[1724454134824,0.84986423,64279.0,64278.0,3.63168201]
[1724454135217,0.84986423,64279.0,64278.0,3.69398501]
[1724454135425,0.23326423,64279.0,64278.0,3.69398501]
[1724454135650,0.009086,64292.0,64291.0,1.826382]
[1724454135827,0.009086,64292.0,64291.0,3.47713438]
[1724454136984,0.009086,64292.0,64291.0,3.29159238]
[1724454137193,0.009086,64292.0,64291.0,3.47713438]
[1724454138125,0.009086,64292.0,64291.0,3.78782423]
[1724454138456,0.009086,64292.0,64291.0,3.99970423]
[1724454139174,0.00293141,64293.0,64292.0,2.10744]
[1724454139450,0.00293141,64293.0,64292.0,4.16400276]
[1724454139589,0.00293141,64293.0,64292.0,4.15294576]
[1724454140792,0.00293141,64293.0,64292.0,3.21920776]
[1724454142031,0.00293141,64293.0,64292.0,3.25038776]
[1724454142254,0.00293141,64293.0,64292.0,4.37352076]
[1724454143156,0.9958,64294.0,64292.0,4.37352076]
[1724454143157,0.98415645,64294.0,64293.0,1.742092]
[1724454143384,0.96560892,64294.0,64293.0,4.23859701]
[1724454143584,0.009086,64324.0,64301.0,0.03]
[1724454143789,0.009086,64324.0,64310.0,0.466489]
[1724454144013,0.009086,64324.0,64310.0,1.24465301]
[1724454144214,0.009086,64324.0,64310.0,1.76885301]
[1724454144389,0.009086,64324.0,64310.0,2.8045937]
[1724454144622,0.009086,64324.0,64310.0,2.96072538]
[1724454145921,0.009086,64324.0,64310.0,3.24343738]
[1724454146734,0.00863394,64311.0,64310.0,3.24343738]
[1724454148288,0.00863394,64311.0,64310.0,2.93244438]
[1724454148515,0.00863394,64311.0,64310.0,0.31230969]
[1724454148720,0.00863394,64311.0,64310.0,0.62266701]
[1724454148951,0.00863394,64311.0,64310.0,1.24465301]
[1724454149975,0.00863394,64311.0,64310.0,0.95666001]
[1724454150083,0.00863394,64311.0,64310.0,1.05666001]
[1724454150817,0.00863394,64311.0,64301.0,0.03118]
[1724454150818,0.61273394,64311.0,64295.0,1.03574069]
[1724454151018,0.61273394,64311.0,64297.0,0.311056]
[1724454151242,0.61273394,64311.0,64298.0,0.15617801]
[1724454151834,0.61273394,64311.0,64302.0,0.155514]
[1724454152037,0.61273394,64311.0,64303.0,0.15617801]
[1724454152237,0.61273394,64311.0,64304.0,0.0467219]
[1724454152471,0.61273394,64311.0,64308.0,0.1555]
[1724454152472,0.20733394,64311.0,64308.0,0.1555]
[1724454152657,0.20733394,64311.0,64309.0,0.310998]
[1724454152892,0.20733394,64311.0,64308.0,0.15617801]
[1724454153094,0.20733394,64311.0,64301.0,0.1]
[1724454153095,0.00863394,64311.0,64310.0,0.155496]
[1724454153279,0.00863394,64311.0,64310.0,0.15617801]
[1724454153479,0.00863394,64311.0,64310.0,0.0467188]
[1724454153676,0.00863394,64311.0,64300.0,0.00599929]
[1724454153677,0.00863394,64311.0,64300.0,0.16151829]
[1724454153875,0.00863394,64311.0,64301.0,0.56721301]
[1724454154123,0.00863394,64311.0,64301.0,0.41169501]
[1724454154324,0.00863394,64311.0,64301.0,0.25617801]
[1724454154703,0.00863394,64311.0,64301.0,0.56721201]
[1724454154900,0.00863394,64311.0,64303.0,0.311025]
[1724454155119,0.00863394,64311.0,64304.0,0.1]
[1724454156693,0.00863394,64311.0,64304.0,0.15551]
[1724454156865,0.00863394,64311.0,64305.0,0.1]
[1724454157285,0.00863394,64311.0,64305.0,0.255508]
[1724454157470,0.00863394,64311.0,64306.0,0.0566544]
[1724454159181,0.00863394,64311.0,64308.0,0.155499]
[1724454159388,0.00863394,64311.0,64308.0,0.1555]
[1724454160803,0.04844966,64311.0,64308.0,0.1555]
[1724454161491,0.04844966,64311.0,64307.0,0.155503]
[1724454161687,0.04844966,64311.0,64308.0,0.06231774]
[1724454162543,0.04844966,64311.0,64308.0,0.21781874]
[1724454163114,0.04844966,64311.0,64309.0,0.155499]
[1724454163342,0.04844966,64311.0,64310.0,0.46717101]
[1724454163541,0.04844966,64311.0,64310.0,1.24465301]
[1724454163743,0.04844966,64311.0,64310.0,1.2987003]
[1724454163901,0.04844966,64311.0,64310.0,0.9877073]
[1724454166305,0.04844966,64311.0,64310.0,2.33444099]
[1724454166416,0.04844966,64311.0,64310.0,2.45744099]
[1724454166842,0.009086,64319.0,64310.0,2.45744099]
[1724454166843,0.009086,64319.0,64318.0,1.088339]
[1724454167056,0.009086,64319.0,64318.0,2.4032577]
[1724454167847,0.009086,64319.0,64318.0,2.0923037]
[1724454168094,0.008886,64319.0,64318.0,2.0923037]
[1724454168728,0.008886,64319.0,64318.0,2.09834453]
[1724454168906,0.008886,64319.0,64318.0,2.15499893]
[1724454169493,0.008886,64319.0,64318.0,2.15461501]
[1724454170269,0.008886,64319.0,64318.0,2.46556901]
[1724454172341,0.008886,64319.0,64318.0,2.84906901]
[1724454172742,0.009086,64343.0,64328.0,0.777265]
[1724454172973,0.009086,64343.0,64328.0,1.36734901]
[1724454173184,0.009086,64343.0,64328.0,1.05644301]
[1724454173982,0.009086,64343.0,64328.0,0.41163101]
[1724454174215,0.00388578,64342.0,64321.0,0.310939]
[1724454174356,0.009086,64343.0,64322.0,0.30938201]
[1724454174357,0.4117,64328.0,64322.0,0.30938201]
[1724454175395,0.009086,64343.0,64322.0,0.30938201]
[1724454175396,0.4117,64335.0,64328.0,0.155453]
[1724454175669,0.4117,64335.0,64328.0,0.31163101]
[1724454175900,0.4117,64335.0,64328.0,0.15617801]
[1724454176072,0.4117,64335.0,64328.0,0.31163101]
[1724454176307,0.4117,64335.0,64328.0,0.36828541]
[1724454176497,0.4117,64341.0,64328.0,0.67919141]
[1724454176998,0.009086,64343.0,64328.0,0.99009741]
[1724454177680,0.009086,64343.0,64328.0,1.09009741]
[1724454178099,0.009086,64343.0,64328.0,0.46828541]
[1724454178389,0.009086,64343.0,64328.0,0.77919141]
[1724454178950,0.009086,64343.0,64328.0,1.09009741]
[1724454180340,0.009086,64343.0,64328.0,1.11309741]
[1724454180641,0.009086,64343.0,64328.0,0.77919141]
[1724454180803,0.4069,64330.0,64328.0,0.1566544]
[1724454181006,0.4069,64330.0,64328.0,0.0566544]
[1724454181350,0.4069,64330.0,64328.0,0.1566544]
[1724454181474,0.4069,64330.0,64322.0,0.053204]
[1724454181664,0.4069,64338.0,64328.0,0.155453]
[1724454182096,0.4069,64338.0,64328.0,0.466359]
[1724454182290,0.4069,64338.0,64328.0,0.62253701]
[1724454182916,0.009086,64343.0,64328.0,0.93344301]
[1724454183291,0.009086,64343.0,64328.0,1.24434901]
[1724454183437,0.009086,64343.0,64328.0,1.36734901]
[1724454183854,0.009086,64343.0,64328.0,1.03344301]
[1724454184199,0.009086,64343.0,64328.0,1.35036581]
[1724454185144,0.009086,64343.0,64328.0,1.34998267]
[1724454186470,0.009086,64343.0,64328.0,2.40872336]
[1724454186669,0.009086,64343.0,64328.0,2.60562336]
[1724454187458,0.009086,64343.0,64328.0,2.91652936]
[1724454187908,0.009086,64343.0,64328.0,2.81962336]
[1724454188753,0.009086,64343.0,64328.0,2.71212336]
[1724454188950,0.009086,64343.0,64328.0,2.60562336]
[1724454189144,0.009086,64343.0,64328.0,3.44434936]
[1724454190827,0.009086,64343.0,64328.0,3.78525536]
[1724454191284,0.009086,64343.0,64328.0,3.81643536]
[1724454192992,0.009086,64343.0,64328.0,3.67485136]
[1724454194416,0.009086,64343.0,64328.0,4.37825736]
[1724454194678,0.009086,64343.0,64342.0,1.087933]
[1724454194923,0.009086,64343.0,64342.0,0.1]
[1724454195142,0.009086,64343.0,64334.0,0.155437]
[1724454195344,0.3765,64341.0,64332.0,1.035358]
[1724454195576,0.00388583,64340.0,64314.0,0.8683]
[1724454195808,0.00388583,64340.0,64310.0,0.182826]
[1724454195809,0.562,64339.0,64310.0,0.000826]
[1724454196015,0.009086,64343.0,64310.0,0.000826]
[1724454196016,0.155435,64336.0,64310.0,0.000826]
[1724454196249,0.562,64334.0,64314.0,0.155486]
[1724454196508,0.3765,64332.0,64312.0,0.310983]
[1724454196751,0.15617801,64331.0,64314.0,0.155486]
[1724454197022,0.3765,64330.0,64316.0,0.310963]
[1724454197289,0.38038674,64330.0,64317.0,0.155478]
[1724454197544,0.3765,64330.0,64318.0,0.155475]
[1724454198011,0.3765,64330.0,64318.0,0.31095]
[1724454198215,0.3765,64330.0,64321.0,0.155468]
[1724454198455,0.3765,64330.0,64325.0,0.01563766]
[1724454198655,0.00388673,64329.0,64315.0,0.310965]
[1724454198865,0.00388679,64328.0,64316.0,0.1]
[1724454199092,0.00388679,64328.0,64313.0,0.1]
[1724454199295,0.00388679,64328.0,64308.0,0.46876099]
[1724454199296,0.1600648,64328.0,64308.0,0.46876099]
[1724454199708,0.1600648,64328.0,64313.0,0.155489]
[1724454199909,0.1600648,64328.0,64314.0,0.155487]
[1724454200112,0.1600648,64328.0,64310.0,0.311814]
[1724454200312,0.15617801,64328.0,64315.0,0.155484]
[1724454200686,0.16006513,64328.0,64313.0,0.155488]
[1724454200926,0.16006513,64328.0,64314.0,0.1]
[1724454201324,0.15617801,64328.0,64314.0,0.410972]
[1724454201481,0.3765,64330.0,64314.0,0.1]
[1724454201881,0.3765,64330.0,64316.0,0.155482]
[1724454201882,0.00388659,64329.0,64316.0,0.155482]
[1724454202228,0.3765,64330.0,64318.0,0.155477]
[1724454202604,0.3765,64330.0,64316.0,0.155481]
[1724454202808,0.3765,64330.0,64317.0,0.155478]
[1724454203412,0.3765,64330.0,64318.0,0.155476]
[1724454203589,0.3765,64330.0,64316.0,0.155481]
[1724454203788,0.3765,64330.0,64320.0,0.15547]
[1724454203981,0.3765,64330.0,64324.0,0.01654646]
[1724454204581,0.3765,64330.0,64324.0,0.0009086]
[1724454205093,0.3765,64330.0,64324.0,0.00052578]
[1724454205295,0.00388668,64329.0,64324.0,0.00052578]
[1724454205522,0.15617801,64328.0,64324.0,0.00052578]
[1724454205696,0.00388714,64327.0,64324.0,0.00052578]
[1724454205916,0.15617801,64328.0,64324.0,0.00052578]
[1724454205917,0.16006515,64328.0,64324.0,0.00052578]
[1724454206499,0.53196,64325.0,64324.0,0.00052578]
[1724454206695,0.99905901,64325.0,64324.0,0.00052578]
[1724454208152,1.80640101,64325.0,64324.0,0.00052578]
[1724454208345,1.80640101,64325.0,64310.0,0.000826]
[1724454208346,0.562,64312.0,64310.0,0.000826]
[1724454208665,1.31403606,64311.0,64310.0,0.000826]
[1724454211075,1.64902406,64311.0,64310.0,0.000826]
[1724454211275,1.83552406,64311.0,64310.0,0.000826]
[1724454211539,1.650629,64301.0,64300.0,1.0]
[1724454211772,1.80780701,64301.0,64300.0,1.0]
[1724454212292,1.80780701,64301.0,64300.0,1.1]
[1724454212701,1.80780701,64301.0,64300.0,1.0]
[1724454214771,1.80880701,64301.0,64300.0,1.0]
[1724454215385,1.49777001,64301.0,64300.0,1.0]
[1724454215604,1.49777001,64301.0,64300.0,1.0009086]
[1724454216000,1.52077001,64301.0,64300.0,1.0009086]
[1724454216967,1.52077001,64301.0,64300.0,1.10099946]
[1724454216968,0.71817801,64301.0,64300.0,1.10099946]
[1724454217100,0.71817801,64301.0,64300.0,1.0009086]
[1724454218371,1.49577001,64301.0,64300.0,1.0009086]
[1724454218984,0.71817801,64301.0,64300.0,1.0009086]
[1724454219184,0.87369601,64301.0,64300.0,1.0009086]
[1724454219544,1.18473301,64301.0,64300.0,1.0009086]
[1724454220166,1.49577001,64301.0,64300.0,1.0009086]
[1724454220487,1.18473301,64301.0,64300.0,1.0009086]
[1724454221242,0.87369601,64301.0,64300.0,1.10099946]
[1724454221453,1.18473301,64301.0,64300.0,1.10099946]
[1724454221653,1.18473301,64301.0,64300.0,1.0009086]
[1724454222408,1.49577001,64301.0,64300.0,1.0009086]
[1724454222573,1.83180701,64301.0,64300.0,1.0009086]
[1724454223753,1.83793132,64301.0,64300.0,1.0009086]
[1724454224751,1.83793132,64301.0,64300.0,1.0009086]
[1724454225550,1.83180701,64301.0,64300.0,1.0009086]
[1724454225924,2.14284401,64301.0,64300.0,1.0009086]
[1724454226139,2.24284401,64301.0,64300.0,1.00050966]
[1724454226769,2.24284401,64301.0,64300.0,0.80584797]
[1724454227196,2.40674401,64301.0,64300.0,0.60584797]
[1724454227408,2.40674401,64301.0,64291.0,0.000825]
[1724454227409,1.49838,64292.0,64291.0,0.000825]
[1724454227614,2.61957667,64292.0,64291.0,0.000825]
[1724454227809,2.61957667,64292.0,64291.0,1e-08]
[1724454228183,2.45567667,64292.0,64291.0,1e-08]
[1724454229436,2.50664519,64292.0,64291.0,1e-08]
[1724454229629,2.93657312,64292.0,64291.0,1e-08]
[1724454229907,2.93657312,64292.0,64269.0,0.46876099]
[1724454229908,0.46678,64270.0,64269.0,0.46876099]
[1724454230083,0.31177101,64270.0,64269.0,0.46876099]
[1724454230287,0.15617801,64270.0,64260.0,0.009075]
[1724454230486,0.155602,64267.0,64261.0,0.020305]
[1724454230691,0.16006884,64266.0,64261.0,0.020305]
[1724454231142,0.155607,64265.0,64261.0,0.020305]
[1724454231337,0.15617801,64264.0,64261.0,0.020305]
[1724454231729,0.15617801,64264.0,64260.0,0.009075]
[1724454234591,0.155615,64261.0,64260.0,0.009075]
[1724454234793,0.31179301,64261.0,64260.0,0.009075]
[1724454234935,0.62302301,64261.0,64260.0,0.009075]
[1724454235449,0.93425301,64261.0,64260.0,0.009075]
[1724454235657,0.62302301,64261.0,64260.0,0.009075]
[1724454235864,0.93425301,64261.0,64260.0,0.009075]
[1724454236105,0.62302301,64261.0,64260.0,0.009075]
[1724454236681,0.15617801,64261.0,64260.0,0.009075]
[1724454237880,0.19599373,64261.0,64260.0,0.009075]
[1724454239442,0.03981572,64261.0,64260.0,0.566492]
[1724454239645,0.03981572,64261.0,64260.0,0.6609317]
[1724454239817,0.03981572,64261.0,64260.0,0.8165487]
[1724454240021,0.03999572,64261.0,64260.0,0.6609317]
[1724454240375,0.03999572,64261.0,64260.0,0.8165487]
[1724454240524,0.03999572,64261.0,64260.0,0.6609317]
[1724454240904,0.03999572,64261.0,64260.0,0.66053169]
[1724454241680,0.19617373,64261.0,64260.0,0.60297499]
[1724454241829,0.19617373,64261.0,64260.0,0.00867499]
[1724454244326,0.03999572,64261.0,64260.0,0.00867499]
[1724454245750,0.19617373,64261.0,64260.0,0.00867499]
[1724454246853,0.03999572,64261.0,64260.0,0.00867499]
[1724454247077,0.03999572,64261.0,64260.0,0.02601289]
[1724454247271,0.03999572,64261.0,64260.0,0.00867499]
[1724454248178,0.03999572,64261.0,64260.0,1.06982699]
[1724454248399,0.03999572,64261.0,64260.0,1.64755716]
[1724454248515,0.03999572,64261.0,64260.0,1.06982699]
[1724454249331,0.03981572,64261.0,64260.0,1.38106199]
[1724454249954,0.03981572,64261.0,64260.0,1.69229699]
[1724454252442,0.04064272,64261.0,64260.0,1.69229699]
[1724454253204,0.11465392,64292.0,64281.0,0.5943]
[1724454253412,0.624939,64291.0,64281.0,0.749866]
[1724454253624,0.624939,64291.0,64281.0,0.5943]
[1724454253625,0.00018,64291.0,64281.0,0.5943]
[1724454253804,0.00018,64291.0,64290.0,0.882235]
[1724454254232,0.00018,64291.0,64290.0,0.571145]
[1724454254361,0.00018,64291.0,64290.0,0.4156]
[1724454254543,0.00018,64291.0,64290.0,0.571145]
[1724454254762,0.00018,64291.0,64290.0,1.193325]
[1724454254981,0.00018,64291.0,64290.0,1.4656155]
[1724454255612,0.00018,64291.0,64290.0,1.1545255]
[1724454256017,0.00018,64291.0,64290.0,1.4656155]
[1724454256440,0.00018,64291.0,64290.0,1.1545255]
[1724454256924,0.00018,64291.0,64290.0,0.8434355]
[1724454257562,0.00018,64291.0,64290.0,1.1545255]
[1724454257778,0.15635801,64291.0,64283.0,0.6058]
[1724454257985,0.16006721,64290.0,64283.0,0.6058]
[1724454258185,0.15635801,64290.0,64283.0,0.6058]
[1724454259457,0.15635801,64290.0,64283.0,0.1902]
[1724454259635,0.15635801,64290.0,64277.0,0.761376]
[1724454259838,0.15635801,64290.0,64278.0,0.10785969]
[1724454260387,0.15635801,64290.0,64278.0,0.26343369]
[1724454260531,0.15635801,64290.0,64278.0,0.10785969]
[1724454261086,0.15635801,64290.0,64279.0,0.155571]
[1724454261488,0.13135801,64290.0,64280.0,0.155568]
[1724454261687,0.13135801,64290.0,64281.0,0.06031033]
[1724454262583,0.00018,64290.0,64281.0,0.06031033]
[1724454262789,0.00018,64290.0,64281.0,0.21587533]
[1724454263138,0.00018,64290.0,64281.0,0.06031033]
[1724454263336,0.15635801,64290.0,64281.0,0.06031033]
[1724454263559,0.15635801,64290.0,64282.0,0.06661103]
[1724454263560,0.16006733,64289.0,64282.0,0.06661103]
[1724454263835,0.16006733,64289.0,64272.0,0.6058]
[1724454264039,0.16006733,64289.0,64259.0,0.009075]
[1724454264040,0.1572,64288.0,64267.0,0.062323]
[1724454264184,0.1572,64288.0,64266.0,0.4156]
[1724454264185,0.46728501,64287.0,64266.0,0.4156]
[1724454264790,0.15617801,64287.0,64269.0,0.155594]
[1724454265084,0.15617801,64287.0,64266.0,0.4156]
[1724454265085,0.155559,64284.0,64266.0,0.4156]
[1724454265312,0.15617801,64283.0,64267.0,0.1078495]
[1724454266391,0.15617801,64283.0,64270.0,0.155592]
[1724454266589,0.15617801,64283.0,64267.0,0.311199]
[1724454266590,0.15635801,64283.0,64268.0,0.155597]
[1724454267205,0.00018,64283.0,64271.0,0.57119]
[1724454267406,0.15635801,64283.0,64271.0,0.4156]
[1724454267656,0.16006771,64282.0,64264.0,0.1902]
[1724454267863,0.16006771,64282.0,64265.0,0.4354492]
[1724454267864,0.15557,64280.0,64265.0,0.4354492]
[1724454268033,0.31564014,64279.0,64265.0,0.4354492]
[1724454268235,0.31564014,64279.0,64265.0,0.0198492]
[1724454268236,0.155585,64274.0,64265.0,0.0198492]
[1724454268434,0.31176501,64273.0,64265.0,0.0198492]
[1724454268663,0.31194501,64273.0,64265.0,0.0198492]
[1724454268983,0.15635801,64273.0,64260.0,0.00829196]
[1724454269148,0.155589,64272.0,64260.0,0.00829196]
[1724454269353,0.31176901,64271.0,64260.0,0.00829196]
[1724454269552,0.31194901,64271.0,64260.0,0.00829196]
[1724454269976,0.15635801,64271.0,64260.0,0.00829196]
[1724454270198,0.15635801,64271.0,64261.0,0.0623167]
[1724454271602,0.46754001,64271.0,64261.0,0.0623167]
[1724454271823,0.155596,64269.0,64261.0,0.0623167]
[1724454271957,0.15617801,64268.0,64261.0,0.0623167]
[1724454272311,0.15635801,64268.0,64261.0,0.0623167]
[1724454272539,0.15635801,64268.0,64262.0,0.06814959]
[1724454272746,0.00389056,64267.0,64260.0,0.00829196]
[1724454272863,0.16006857,64267.0,64260.0,0.00829196]
[1724454273066,0.15617801,64267.0,64260.0,0.00829196]
[1724454273518,0.00018,64268.0,64260.0,0.00829196]
[1724454273710,0.15635801,64268.0,64261.0,0.017299]
[1724454273947,0.15635801,64268.0,64260.0,0.00829196]
[1724454274119,0.00018,64268.0,64260.0,0.00829196]
[1724454275715,0.00018,64268.0,64260.0,0.01418778]
[1724454276130,0.00018,64268.0,64261.0,0.3792]
[1724454276356,0.00018,64268.0,64262.0,0.155612]
[1724454276573,0.00018,64268.0,64263.0,0.1135805]
[1724454277001,0.00018,64268.0,64261.0,0.3792]
[1724454277397,0.00018,64268.0,64260.0,0.00829196]
[1724454277782,0.15617801,64267.0,64260.0,0.00829196]
[1724454277983,0.00389074,64266.0,64260.0,0.00829196]
[1724454278184,0.155783,64266.0,64260.0,0.00829196]
[1724454278435,0.00018,64266.0,64260.0,0.00829196]
[1724454278612,0.155608,64264.0,64260.0,0.04794866]
[1724454278821,0.00389071,64263.0,64260.0,0.04794866]
[1724454279021,0.00407071,64263.0,64260.0,0.04794866]
[1724454279423,0.00018,64263.0,64260.0,0.04794866]
[1724454279627,0.778075,64261.0,64260.0,0.00829196]
[1724454279895,0.62320301,64261.0,64260.0,0.00829196]
[1724454280144,0.15635801,64261.0,64260.0,0.00829196]
[1724454281606,0.00018,64261.0,64260.0,0.19619196]
[1724454281849,0.00018,64261.0,64260.0,0.21671866]
[1724454283236,0.00018,64261.0,64260.0,0.19619196]
[1724454283598,0.00018,64261.0,64260.0,0.00829196]
[1724454286159,0.03999572,64261.0,64260.0,0.00829196]
[1724454287156,0.19617373,64261.0,64260.0,0.00829196]
[1724454287356,0.35178873,64261.0,64260.0,0.00829196]
[1724454289080,0.19617373,64261.0,64260.0,0.00829196]
[1724454289630,0.35178873,64261.0,64260.0,0.00829196]
[1724454290659,0.66301873,64261.0,64260.0,0.00829196]
[1724454292038,0.19617373,64261.0,64260.0,0.00829196]
[1724454293041,0.03999572,64261.0,64260.0,0.00829196]
[1724454293290,0.03999572,64261.0,64260.0,0.42299196]
[1724454293493,0.03999572,64261.0,64260.0,0.46619866]
[1724454294506,0.03999572,64261.0,64260.0,1.11545066]
[1724454295665,0.03999572,64261.0,64260.0,1.42668566]
[1724454295822,0.03999572,64261.0,64260.0,1.58286367]
[1724454296183,0.03999572,64261.0,64260.0,1.99409867]
[1724454296826,0.03999572,64261.0,64260.0,1.68286367]
[1724454298066,0.03999572,64261.0,64260.0,0.90421566]
[1724454298314,0.000827,64271.0,64261.0,0.5954]
[1724454298487,0.000827,64271.0,64270.0,1.63986217]
[1724454298688,0.000827,64271.0,64270.0,1.79604018]
[1724454298891,0.000827,64271.0,64270.0,0.96189517]
[1724454299467,0.000827,64271.0,64270.0,1.42867517]
[1724454299666,0.000827,64271.0,64270.0,1.73986217]
[1724454300035,0.000827,64271.0,64270.0,1.77321154]
[1724454300256,0.000827,64271.0,64270.0,2.29151627]
[1724454300429,0.000827,64271.0,64270.0,2.34475759]
[1724454300969,0.000827,64271.0,64270.0,2.29151627]
[1724454301174,0.000827,64290.0,64285.0,0.5954]
[1724454301490,0.000827,64290.0,64286.0,0.0432067]
[1724454302709,0.000827,64290.0,64287.0,0.155552]